Cogmind - Beta 13 @@@ ROGUE MODE // 2024.06.30 @ 14:57:00 Player: keygenpie Result: Self-destructed Performance ------------- Evolutions (1) 500 Regions Visited (2) 400 Robots Destroyed (27) 135 Value Destroyed (506) 506 Prototype IDs (2) 40 Alien Tech Used (0) 0 Bonus (0) 0 TOTAL SCORE: 1581 Bonus ------- None Cogmind --------- Core Integrity 48/400 Matter 300/300 Energy 100/100 System Corruption 0% Temperature Cool (0) Movement Core (100) Ox1 Location -9/Materials Parts ------- > --- POWER (2) -------- (None) > --- PROPULSION (2) --- (None) > --- UTILITY (3) ------ Small Storage Unit > --- WEAPON (2) ------- (None) > --- INVENTORY (8) ---- Visual Processing Unit Signal Interpreter Terrain Scan Processor Transport Network Coupler Targeting Computer Peak State ------------ > --- POWER ------------ Light Ion Engine > --- PROPULSION ------- Light Treads Light Treads > --- UTILITY ---------- Heat Sink Small Storage Unit > --- WEAPON ----------- Light Assault Rifle Light Cannon > --- INVENTORY -------- Light Ion Engine Small Storage Unit Visual Processing Unit Signal Interpreter Terrain Scan Processor Transport Network Coupler Targeting Computer Welding Torch [Rating: 8] Favorites ----------- Power Ion Engine Engine Ion Engine Propulsion Wheel Treads Light Treads Leg Aluminum Leg Wheel Wheel Utility Small Storage Unit Device Heat Sink Storage Small Storage Unit Weapon Light Assault Rifle Energy Gun EM Pulse Gun Ballistic Gun Light Assault Rifle Ballistic Cannon Light Cannon Special Weapon Welding Torch Build | -11 -10 -9 ------- Run | Yrd Mat Mat Slots Evolved 2 | . . 2 Power 1 | . . 1 Propulsion . | . . . Utility 1 | . . 1 Weapon . | . . . Parts Attached 34 | 6 28 . Power 7 | 1 6 . Engine 7 | 1 6 . Core . | . . . Reactor . | . . . Propulsion 8 | 2 6 . Treads 2 | . 2 . Leg 3 | . 3 . Wheel 3 | 2 1 . Hover . | . . . Flight . | . . . Utility 5 | 1 4 . Device 3 | . 3 . Storage 2 | 1 1 . Processor . | . . . Hackware . | . . . Protection . | . . . Artifact . | . . . Weapon 14 | 2 12 . Energy Gun 1 | . 1 . Energy Cannon . | . . . Ballistic Gun 6 | 2 4 . Ballistic Cannon 1 | . 1 . Launcher . | . . . Special Weapon 6 | . 6 . Impact Weapon . | . . . Slashing Weapon . | . . . Piercing Weapon . | . . . Special Melee Weapon . | . . . Unidentified Prototypes . | . . . Parts Lost 12 | . 8 4 Power 3 | . 2 1 Propulsion 3 | . 2 1 Utility . | . . . Weapon 6 | . 4 2 Highest Loss Streak 4 | . 4 4 To Critical Strikes . | . . . Average Slot Usage (%) 90 | . 93 55 Engine 13 | . 13 9 Treads 8 | . 9 . Leg 3 | . 2 17 Wheel 12 | . 13 . Device 12 | . 12 8 Storage 13 | . 14 11 Energy Gun 2 | . 2 . Ballistic Gun 11 | . 12 . Ballistic Cannon 3 | . 3 . Special Weapon 6 | . 6 8 Naked Turns . | . . . Heaviest Build 15 | 14 15 13 Greatest Support 40 | 20 40 20 Greatest Overweight (x) 1 | . 1 1 Average Overweight (x) . | . . . Largest Inventory Capacity 8 | 8 8 8 Average Capacity 7 | 6 8 8 Most Carried 8 | 5 8 5 Average Carried 5 | 2 5 5 Final Capacity 8 | 8 8 8 Final Carried 5 | 4 5 5 Class Distribution -------------------- 87% | Mutant 12% | Scavenger-Mutant Dominant Class ---------------- Mutant | -10/Materials Scavenger-Mutant | -9/Materials Resources | -11 -10 -9 ----------- Run | Yrd Mat Mat Matter Collected 661 | 230 431 . Remotely . | . . . Salvage Created 658 | . 658 . Parts 59 | . 59 . Haulers Intercepted 1 | . 1 . Recyclers Shooed . | . . . Parts Field Recycled . | . . . Retrieved Matter . | . . . Parts Self-Destructed . | . . . Prevented . | . . . Kills | -11 -10 -9 ------- Run | Yrd Mat Mat Combat Hostiles Destroyed 18 | . 18 . Guns 12 | . 12 . Cannons 6 | . 6 . Classes Destroyed 8 | . 8 . Worker 2 | . 2 . Builder 1 | . 1 . Tunneler 1 | . 1 . Hauler 1 | . 1 . Operator 1 | . 1 . Watcher 3 | . 3 . Swarmer 9 | . 9 . Grunt 9 | . 9 . Best Kill Streak 7 | . 7 . Combat Bots Only 7 | . 7 . Max Kills in Single Turn 3 | . 3 . Gunslinging 1 | . 1 . Exploded . | . . . Melee . | . . . Uniques/NPCs Destroyed . | . . . Combat | -11 -10 -9 -------- Run | Yrd Mat Mat Hostile Shots Fired 212 | . 172 40 Missed 68 | . 58 10 Damage Taken 1740 | . 1106 634 Core 549 | . 197 352 Absorbed by Shields . | . . . Core Remaining (%) 60 | 100 21 . Volleys Fired 87 | . 84 3 Largest 2 | . 2 2 Hottest 60 | . 60 40 Shots Fired 150 | . 146 4 Gun 93 | . 93 . Cannon 17 | . 17 . Launcher . | . . . Special 40 | . 36 4 Kinetic 98 | . 98 . Thermal 40 | . 36 4 Explosive . | . . . Electromagnetic 12 | . 12 . Robot Hit Streak 6 | . 6 2 Robot Miss Streak 8 | . 8 1 Penetration Max . | . . . Secondary Targets 1 | . 1 . Max Gunslinging Chain 1 | . 1 . Shots Hit Robots 79 | . 77 2 Core Hits 63 | . 56 7 Critical Kills 1 | . 1 . Critical Parts Destroyed . | . . . Critical Strikes 1 | . 1 . Destroy 1 | . 1 . Melee Attacks . | . . . Impact . | . . . Slashing . | . . . Piercing . | . . . Sneak Attacks . | . . . Combat Hostiles . | . . . Follow-up Attacks . | . . . Damage Inflicted 1123 | . 1084 39 Guns 615 | . 615 . Cannons 217 | . 217 . Explosions 212 | . 212 . Melee . | . . . Ramming 32 | . . 32 Kinetic 747 | . 747 . Thermal 105 | . 98 7 Explosive . | . . . Electromagnetic 239 | . 239 . Impact . | . . . Slashing . | . . . Piercing . | . . . Highest Corruption . | . . . Average Corruption . | . . . Corruption Purged . | . . . Corruption Blocked . | . . . Overload Shots . | . . . Overflow Damage 4 | . 4 . Projectiles 4 | . 4 . Explosions . | . . . Melee . | . . . Knockbacks 2 | . 2 . Impact . | . . . Kinetic 2 | . 2 . Secondary . | . . . Self-Inflicted Damage 5 | . . 5 Shots . | . . . Rammed 5 | . . 5 Targets Rammed 15 | . . 15 Kicked 10 | . . 10 Crushed . | . . . Highest Temperature 6 | . 6 . Average Temperature 4 | . 4 . Received Heat Transfer 510 | . 414 96 Siege Activations . | . . . Robots Corrupted . | . . . Combat Hostiles . | . . . Parts Fried . | . . . Impact Corruptions . | . . . Robots Melted . | . . . Combat Hostiles . | . . . Parts Melted . | . . . Heat Transferred 475 | . 425 50 Parts Sabotaged . | . . . Parts Stolen . | . . . Parts Stripped . | . . . Power Chain Reactions 1 | . 1 . Alert | -11 -10 -9 ------- Run | Yrd Mat Mat Peak Influence 351 | . 351 89 Initial 84 | . . 84 Average 213 | . 241 71 Maximum Alert Level 1 | . 1 . Low Security (%) 31 | 100 19 100 Level 1 68 | . 80 . Level 2 . | . . . Level 3 . | . . . Level 4 . | . . . Level 5 . | . . . High Security . | . . . Max Security . | . . . Squads Dispatched 5 | . 5 . Investigation 3 | . 3 . Extermination . | . . . Reinforcement 2 | . 2 . Assault . | . . . Garrison . | . . . Intercept . | . . . Searches Triggered . | . . . Construction Impeded . | . . . Haulers Reinforced . | . . . Active Scanning Responses . | . . . Cargo Convoy Interrupts . | . . . Stealth | -11 -10 -9 --------- Run | Yrd Mat Mat Distress Signals 1 | . 1 . Communications Jammed . | . . . Distress Signals . | . . . Times Spotted 29 | . 26 3 Peak Tracking Total 7 | . 7 3 Tactical Retreats 1 | . 1 . Traps | -11 -10 -9 ------- Run | Yrd Mat Mat Traps Triggered 2 | . 2 . Indirectly . | . . . Trap Hack Attempts . | . . . Triggered . | . . . Disarmed . | . . . Reprogrammed . | . . . Reused . | . . . Traps Extracted . | . . . Installed . | . . . Triggered . | . . . Machines | -11 -10 -9 ---------- Run | Yrd Mat Mat Machines Disabled 4 | . 4 . Max in Single Turn 2 | . 2 . Machines Repaired . | . . . Machines Dismantled . | . . . Machines Sabotaged . | . . . Overloaded Fab Kills . | . . . Hacking | -11 -10 -9 --------- Run | Yrd Mat Mat Machines Accessed 5 | . 4 1 Terminals 3 | . 2 1 Fabricators . | . . . Repair Stations . | . . . Recycling Units 2 | . 2 . Scanalyzers . | . . . Garrison Access . | . . . Total Hacks 15 | . 14 1 Successful 12 | . 11 1 Failed 3 | . 3 . Catastrophic . | . . . Database Lockouts . | . . . Manual . | . . . Terminals 8 | . 7 1 Fabricators . | . . . Repair Stations . | . . . Recycling Units 7 | . 7 . Scanalyzers . | . . . Garrison Access . | . . . Terminal Hacks 6 | . 5 1 Record 2 | . 2 . Prototype ID Bank 1 | . 1 . Alert Level 1 | . 1 . Reinforcement Status 1 | . 1 . Zone Layout 1 | . . 1 Fabricator Hacks . | . . . Repair Station Hacks . | . . . Recycling Unit Hacks 6 | . 6 . Recycle Component 1 | . 1 . Process 2 | . 2 . Report Inventory 1 | . 1 . Retrieve Matter 1 | . 1 . Retrieve Components 1 | . 1 . Scanalyzer . | . . . Garrison Access Hacks . | . . . Unauthorized Hacks . | . . . Terminals . | . . . Fabricators . | . . . Repair Stations . | . . . Recycling Units . | . . . Scanalyzers . | . . . Garrison Access . | . . . Data Cores Recovered . | . . . Used . | . . . Hacking Detections 2 | . 2 . Full Trace Events 2 | . 2 . Feedback Events . | . . . Feedback Blocked . | . . . Robot Schematics Acquired . | . . . Robots Built . | . . . Authchips . | . . . Time . | . . . Total Robot Build Rating . | . . . Part Schematics Acquired . | . . . Parts Built . | . . . Authchips . | . . . Time . | . . . Total Part Build Rating . | . . . Parts Repaired . | . . . Time . | . . . Parts Recycled 1 | . 1 . Recycled Matter 252 | . 252 . Retrieved Matter 57 | . 57 . Retrieved Components . | . . . Parts Scanalyzed . | . . . Part Schematics Acquired . | . . . Parts Damaged . | . . . Bothacking | -11 -10 -9 ------------ Run | Yrd Mat Mat Used RIF Installer . | . . . Robots Hacked . | . . . Non-combat . | . . . Combat . | . . . Robot Hacks Applied . | . . . Relay Couplers Released . | . . . Fabnet Peak Effective % . | . . . Robots Rewired . | . . . Allies Hacked . | . . . Hacks Repelled . | . . . Allies | -11 -10 -9 -------- Run | Yrd Mat Mat Total Allies . | . . . Largest Group . | . . . Highest-Rated Group . | . . . Highest-Rated Ally . | . . . Total Orders . | . . . Ally Attacks . | . . . Total Damage . | . . . Kills . | . . . Allies Corrupted . | . . . Allies Melted . | . . . Intel | -11 -10 -9 ------- Run | Yrd Mat Mat Robot Analysis Total . | . . . Derelict Logs Recovered . | . . . Drone Launches . | . . . Drone Recoveries . | . . . Exploration | -11 -10 -9 ------------- Run | Yrd Mat Mat Turns Passed 1035 | 59 886 90 Spaces Moved 671 | 54 565 52 Core 21 | 10 . 11 Treads 142 | . 142 . Legs 88 | . 47 41 Wheels 420 | 44 376 . Hover . | . . . Flight . | . . . Fastest Speed 50 | 50 80 100 Average Speed 102 | 74 103 117 Slowest Speed 190 | 80 160 190 Overloaded Moves . | . . . Propulsion Burnouts . | . . . Robots Hopped . | . . . Cave-ins Triggered . | . . . Exploration Rate (%) 24 | 3 65 6 Regions Visited 2 Branch Regions . Pre-discovered Areas . | . . . Known Exits Taken . | . . . Unknown Exits Taken 2 | 1 1 . Scrap Searched . | . . . Spaces Dug . | . . . Terrain Destroyed 2 | . 2 . Melee . | . . . Projectile . | . . . AOE 2 | . 2 . Terrain Rammed . | . . . Walls Destroyed . | . . . Machines Disabled . | . . . Actions | -11 -10 -9 --------- Run | Yrd Mat Mat Total 869 | 72 726 71 Wait 12 | 3 8 1 Move 669 | 53 564 52 Hop . | . . . Pick Up 36 | 10 26 . Fast Attach 1 | . 1 . Attach 21 | 6 15 . Detach 1 | . 1 . Swap 12 | . 12 . Drop 15 | . 15 . Fire 87 | . 84 3 Melee . | . . . Ram 5 | . . 5 Kick 10 | . . 10 Crush . | . . . Escape Stasis . | . . . Rewire . | . . . Trap . | . . . Miscellaneous . | . . . Route ------- -11/Scrapyard -10/Materials (discovered 3 exits: *Mat / [*Min x2]) -9/Materials History --------- Turn | Location | Event 19 | -11/Scrapyard | Discovered new exit (range 16) 60 | -11/Scrapyard | Entered Materials 62 | -10/Materials | Discovered new exit (range 12) 309 | -10/Materials | Build established: Mutant 364 | -10/Materials | Discovered new exit (range 15) 519 | -10/Materials | Destroyed 7 combat bots 746 | -10/Materials | Core integrity fell below 50% 770 | -10/Materials | Lost 4 parts (1p1n2w) 903 | -10/Materials | Discovered new exit (range 8) 946 | -10/Materials | Entered another Materials area 946 | -9/Materials | Evolved 2 slots: Power x1, Utility x1 1023 | -9/Materials | Core integrity fell below 50% 1035 | -9/Materials | Core integrity fell below 20% 1036 | -9/Materials | Self-destructed Last Messages --------------- >>Layout(Zone) Retrieving Zone 7O layout... Downloaded map data. 00979_ Welding Torch destroyed. 00988_ Kicked L-31 Rogue out of the way. 00989_ Kicked L-31 Rogue. 01008_ Kicked L-31 Rogue out of the way. 01011_ Aluminum Leg destroyed. 01013_ Heat Sink severed. 01014_ Kicked L-31 Rogue. 01015_ Kicked L-31 Rogue out of the way. 01016_ Aluminum Leg severed. 01016_ Slammed into L-31 Rogue. 01016_ R-06 Scavenger collects Aluminum Leg. 01018_ Slammed into L-31 Rogue. 01021_ Ion Engine destroyed. 01021_ R-06 Scavenger collects Heat Sink. 01022_ Slammed into L-31 Rogue. 01027_ M-13 Machinist repairs L-31 Rogue. 01035_ Slammed into L-31 Rogue. Map ----- +----------------------------------------------------+ | ???????????????????????????????????? | | ???????????????????????????????????? | | ???????????????????????????????????? | | ???????????????????????????????????? | | ???????????????????????????????????? | | ???????????????????????????????????? | | ???????????????????????????????????? | | ???????????????????????????????????? | | ??????#???#############????????????? | | ?????? ?? ## #????????????? | | ??????? ?? ## #????????????? | | ??????? ?? ## """ #????????????? | | ??????? ?? ## """ ######???????? | | ??????? ? ## """ ## #???????? | | ???????? ? ## ## #???????? | | ???????? ? ## """ ## #???????? | | ???????? ? ## """ ## #???????? | | ????????#/##### """ ## #???????? | | ????????# #???# ! ## #???????? | | ????????# #???# %%% ## ##??????? | | ????????# #########+### #??????? | | ????????# %% #??????? | | ? + %% T #??????? | | """"" # #??????? | | ???"""??###############ggl #??????? | | ????????????????????#####@#####????? | | ????????????????????# % #????? | | ????????????????????# #????? | | ??????????########### #????? | | ??????????# # """"""" #????? | | ??????????# """ # """"""" #????? | | ??????????# """"" # """"""" #????? | | ??????????# """"" # """"""" #????? | | ??????????+ """"" # """"""" #????? | | ??????????# """ ###########????? | | ??????????# #??????????????? | | ??????????# #??????????????? | | ??????????###########??????????????? | | ???????????????????????????????????? | | ???????????????????????????????????? | | ???????????????????????????????????? | | ???????????????????????????????????? | | ???????????????????????????????????? | | ???????????????????????????????????? | | ???????????????????????????????????? | | ???????????????????????????????????? | | ???????????????????????????????????? | | ???????????????????????????????????? | | ???????????????????????????????????? | | ???????????????????????????????????? | +----------------------------------------------------+ Best States ------------- Heat Dissipation 38 Energy Generation 10 Energy Capacity 250 Matter Stores 300 Matter Capacity 300 Sight Range 16 Terrain Scan Density 10 Evasion (%) 55 Recoil Reduction 2 Item Schematics ----------------- None Robot Schematics ------------------ None Fabricated ------------ Nothing Alien Tech Used ----------------- None Achievements -------------- None Challenges ------------ None Game ------ Seed InertialReflectiveBroadsword Manual? 0 Play Time 00:18:45 Cumulative 2.3 hours Start 2024.06.30 @ 14:35:37 End 2024.06.30 @ 14:57:00 Sessions 1 Manual Loads 0 Difficulty Rogue Special Mode None Game No. 5 Rogue 5 Adventurer 0 Explorer 0 Win Type - Total 0 Types 0/0/0/0/0/0/0/0/0 Lore% 3 Gallery% 7 Achievement% 8 Wizard Run 0 Options --------- Layout 1 ASCII 0 Keyboard 0 Movement Arrows Keybinds 0 Fullscreen 1 Font 24/Tamsyn Map View 50x35 Zoom Use 0% Tactical HUD 1 Map Filters NONE Filters NONE Steam 1 RUN: 6b5177e7-5c07-45dd-9fe8-9b1fabb86f75